[Event "*** Titled Tuesday Blitz"]
[Site "Chess.com"]
[Date "2020.11.03"]
[Round "8"]
[White "penguingm1"]
[Black "frederiksvane"]
[Result "1-0"]
[WhiteElo "2818"]
[BlackElo "2646"]
[TimeControl "180+1"]
[EndTime "11:33:33 PST"]
[Termination "penguingm1 won on time"]

1. d4 {[%clk 0:02:49.5]} 1... Nf6 {[%clk 0:03:00]} 2. c4 {[%clk 0:02:49.5]} 2...
e6 {[%clk 0:02:52.8]} 3. Nc3 {[%clk 0:02:49.7]} 3... Bb4 {[%clk 0:02:52.7]} 4.
Qc2 {[%clk 0:02:49.9]} 4... O-O {[%clk 0:02:52.3]} 5. Nf3 {[%clk 0:02:50]} 5...
d6 {[%clk 0:02:43.3]} 6. g3 {[%clk 0:02:49.7]} 6... c5 {[%clk 0:02:36.6]} 7. Bg2
{[%clk 0:02:48.9]} 7... Nc6 {[%clk 0:02:30.6]} 8. dxc5 {[%clk 0:02:38.5]} 8...
dxc5 {[%clk 0:02:15.6]} 9. O-O {[%clk 0:02:38.6]} 9... Nd4 {[%clk 0:02:00.6]}
10. Nxd4 {[%clk 0:02:29]} 10... cxd4 {[%clk 0:01:54.9]} 11. Rd1 {[%clk
0:02:28.4]} 11... e5 {[%clk 0:01:49.1]} 12. Bg5 {[%clk 0:02:17.1]} 12... Be6
{[%clk 0:01:09.4]} 13. Ne4 {[%clk 0:01:29.6]} 13... Be7 {[%clk 0:01:04.2]} 14.
Nxf6+ {[%clk 0:01:28.1]} 14... Bxf6 {[%clk 0:01:05.1]} 15. Bxf6 {[%clk
0:01:28.4]} 15... Qxf6 {[%clk 0:01:04.9]} 16. Bxb7 {[%clk 0:01:29]} 16... Rab8
{[%clk 0:01:03.4]} 17. Bg2 {[%clk 0:01:27.7]} 17... Rfc8 {[%clk 0:00:49.5]} 18.
b3 {[%clk 0:01:25.4]} 18... a5 {[%clk 0:00:46.7]} 19. c5 {[%clk 0:01:20.1]}
19... Bf5 {[%clk 0:00:30.2]} 20. Qc1 {[%clk 0:01:17]} 20... Bd7 {[%clk
0:00:16.2]} 21. Qa3 {[%clk 0:00:58.1]} 21... Qe7 {[%clk 0:00:12.5]} 22. Rac1
{[%clk 0:00:57.4]} 22... Rb5 {[%clk 0:00:12.8]} 23. e3 {[%clk 0:00:48.3]} 23...
Rbxc5 {[%clk 0:00:11.2]} 24. Rxc5 {[%clk 0:00:43.8]} 24... Rxc5 {[%clk
0:00:11.7]} 25. h4 {[%clk 0:00:27.7]} 25... h5 {[%clk 0:00:09.6]} 26. exd4
{[%clk 0:00:26.8]} 26... exd4 {[%clk 0:00:10.5]} 27. Rxd4 {[%clk 0:00:27.2]}
27... Qe1+ {[%clk 0:00:09.1]} 28. Kh2 {[%clk 0:00:26.9]} 28... Rc7 {[%clk
0:00:03.1]} 29. Qd6 {[%clk 0:00:19.1]} 29... Qc3 {[%clk 0:00:03.4]} 30. Rd3
{[%clk 0:00:11.8]} 30... Qc2 {[%clk 0:00:02.5]} 31. Rd2 {[%clk 0:00:12]} 31...
Qc3 {[%clk 0:00:03]} 32. Be4 {[%clk 0:00:09.6]} 32... g6 {[%clk 0:00:02.1]} 33.
Rc2 {[%clk 0:00:09.8]} 33... Qxc2 {[%clk 0:00:01.8]} 34. Bxc2 {[%clk 0:00:10.7]}
34... Rxc2 {[%clk 0:00:02.1]} 35. Qxd7 {[%clk 0:00:11.1]} 35... Rxf2+ {[%clk
0:00:02.6]} 36. Kg1 {[%clk 0:00:11.7]} 36... Rxa2 {[%clk 0:00:03.5]} 37. Qd8+
{[%clk 0:00:11.2]} 37... Kg7 {[%clk 0:00:03.6]} 38. Qd4+ {[%clk 0:00:11.7]}
38... Kg8 {[%clk 0:00:04.2]} 39. Qc5 {[%clk 0:00:09.4]} 39... Rb2 {[%clk
0:00:02.4]} 40. Qc8+ {[%clk 0:00:09.3]} 40... Kh7 {[%clk 0:00:03]} 41. Qf8
{[%clk 0:00:08.6]} 41... Rb1+ {[%clk 0:00:01.9]} 42. Kg2 {[%clk 0:00:08.7]}
42... Rb2+ {[%clk 0:00:02.4]} 43. Kh3 {[%clk 0:00:09]} 43... Rf2 {[%clk
0:00:02.7]} 44. Qe7 {[%clk 0:00:06.2]} 44... Rf5 {[%clk 0:00:03.1]} 45. Kg2
{[%clk 0:00:06.3]} 45... Kg8 {[%clk 0:00:03.6]} 46. Qe4 {[%clk 0:00:06.1]} 46...
Kg7 {[%clk 0:00:04]} 47. Kg1 {[%clk 0:00:05.6]} 47... Kg8 {[%clk 0:00:04.5]} 48.
Qd4 {[%clk 0:00:06.3]} 48... Kh7 {[%clk 0:00:04.7]} 49. Qd8 {[%clk 0:00:06.7]}
49... Kg7 {[%clk 0:00:05]} 50. Kg2 {[%clk 0:00:07.4]} 50... Kh7 {[%clk
0:00:05.3]} 51. Kh3 {[%clk 0:00:07.9]} 51... Kg7 {[%clk 0:00:05.8]} 52. g4
{[%clk 0:00:07.3]} 52... Rf3+ {[%clk 0:00:05.8]} 53. Kg2 {[%clk 0:00:07.9]}
53... hxg4 {[%clk 0:00:06.7]} 54. Qd4+ {[%clk 0:00:08.2]} 54... Kg8 {[%clk
0:00:07.3]} 55. Qd8+ {[%clk 0:00:07.7]} 55... Kh7 {[%clk 0:00:06.5]} 56. Qxa5
{[%clk 0:00:05.4]} 56... Rxb3 {[%clk 0:00:06.2]} 57. Qd5 {[%clk 0:00:06]} 57...
Rf3 {[%clk 0:00:06.6]} 58. Qg5 {[%clk 0:00:06.2]} 58... Rf5 {[%clk 0:00:07.1]}
59. Qxg4 {[%clk 0:00:06.4]} 59... Kg7 {[%clk 0:00:07.7]} 60. Qd4+ {[%clk
0:00:06.6]} 60... Kg8 {[%clk 0:00:07.8]} 61. Kg3 {[%clk 0:00:07]} 61... Kh7
{[%clk 0:00:07.9]} 62. Kg4 {[%clk 0:00:07.5]} 62... Kg8 {[%clk 0:00:08.4]} 63.
Qd8+ {[%clk 0:00:07.8]} 63... Kg7 {[%clk 0:00:08.7]} 64. Qe8 {[%clk 0:00:08]}
64... Kh7 {[%clk 0:00:08.4]} 65. Qf8 {[%clk 0:00:08.5]} 65... Rf6 {[%clk
0:00:03]} 66. h5 {[%clk 0:00:08.9]} 66... Rf5 {[%clk 0:00:01.8]} 67. h6 {[%clk
0:00:07.2]} 1-0

[Event "*** Titled Tuesday Blitz"]
[Site "Chess.com"]
[Date "2020.11.03"]
[Round "8"]
[White "RobertoJBM"]
[Black "Borsuk_Konstantin"]
[Result "0-1"]
[WhiteElo "2783"]
[BlackElo "2620"]
[TimeControl "180+1"]
[EndTime "11:33:36 PST"]
[Termination "Borsuk_Konstantin won on time"]

1. d4 {[%clk 0:03:00.9]} 1... Nf6 {[%clk 0:02:59.4]} 2. c4 {[%clk 0:03:01.2]}
2... e6 {[%clk 0:02:59.4]} 3. Nc3 {[%clk 0:03:01.2]} 3... Bb4 {[%clk 0:02:59.5]}
4. Qc2 {[%clk 0:03:01.3]} 4... O-O {[%clk 0:02:58.6]} 5. a3 {[%clk 0:03:01.1]}
5... Bxc3+ {[%clk 0:02:58.4]} 6. Qxc3 {[%clk 0:03:02]} 6... b6 {[%clk
0:02:57.5]} 7. Bg5 {[%clk 0:03:01.7]} 7... Bb7 {[%clk 0:02:57.9]} 8. f3 {[%clk
0:03:00.1]} 8... c5 {[%clk 0:02:53.4]} 9. dxc5 {[%clk 0:02:59.1]} 9... bxc5
{[%clk 0:02:53.1]} 10. Bxf6 {[%clk 0:02:48.1]} 10... Qxf6 {[%clk 0:02:48.9]} 11.
Qxf6 {[%clk 0:02:47.9]} 11... gxf6 {[%clk 0:02:48.7]} 12. O-O-O {[%clk
0:02:43.5]} 12... Rd8 {[%clk 0:02:34.3]} 13. e3 {[%clk 0:02:41.4]} 13... d6
{[%clk 0:02:31.4]} 14. Ne2 {[%clk 0:02:40.4]} 14... Kf8 {[%clk 0:02:31.1]} 15.
Nc3 {[%clk 0:02:40.1]} 15... Ke7 {[%clk 0:02:31.2]} 16. Bd3 {[%clk 0:02:40.1]}
16... h6 {[%clk 0:02:30.6]} 17. Rd2 {[%clk 0:02:36.7]} 17... Nc6 {[%clk
0:02:27.1]} 18. Be4 {[%clk 0:02:34.2]} 18... Rab8 {[%clk 0:02:21.8]} 19. Bxc6
{[%clk 0:02:32]} 19... Bxc6 {[%clk 0:02:21.9]} 20. Rhd1 {[%clk 0:02:32.9]} 20...
a6 {[%clk 0:02:19.6]} 21. e4 {[%clk 0:02:18.9]} 21... Rd7 {[%clk 0:01:59]} 22.
Rd3 {[%clk 0:02:14.1]} 22... Rg8 {[%clk 0:01:45.2]} 23. R1d2 {[%clk 0:02:13.8]}
23... h5 {[%clk 0:01:34.6]} 24. Nd1 {[%clk 0:02:11.6]} 24... Rg5 {[%clk
0:01:18.3]} 25. Ne3 {[%clk 0:02:10.8]} 25... Rg8 {[%clk 0:01:16.8]} 26. Rb3
{[%clk 0:02:02]} 26... Rb7 {[%clk 0:01:14.9]} 27. Rxb7+ {[%clk 0:02:00.6]} 27...
Bxb7 {[%clk 0:01:14.7]} 28. Kc2 {[%clk 0:01:58.7]} 28... a5 {[%clk 0:01:09.1]}
29. b3 {[%clk 0:01:57.8]} 29... Bc6 {[%clk 0:01:08.1]} 30. Kc3 {[%clk
0:01:57.4]} 30... h4 {[%clk 0:01:05.8]} 31. h3 {[%clk 0:01:52.6]} 31... Rb8
{[%clk 0:01:04.4]} 32. Nc2 {[%clk 0:01:33.8]} 32... Ra8 {[%clk 0:00:57.3]} 33.
Ne1 {[%clk 0:01:32.4]} 33... Rg8 {[%clk 0:00:52.6]} 34. Nd3 {[%clk 0:01:32.3]}
34... Ra8 {[%clk 0:00:50.4]} 35. Ra2 {[%clk 0:01:26.9]} 35... Bd7 {[%clk
0:00:48.3]} 36. Rb2 {[%clk 0:01:24.1]} 36... Bc6 {[%clk 0:00:47]} 37. Kd2 {[%clk
0:01:19.6]} 37... e5 {[%clk 0:00:41.6]} 38. Kc3 {[%clk 0:01:18.6]} 38... Ke6
{[%clk 0:00:41]} 39. Rd2 {[%clk 0:01:10.4]} 39... f5 {[%clk 0:00:39.7]} 40.
exf5+ {[%clk 0:01:05.2]} 40... Kxf5 {[%clk 0:00:39.9]} 41. Nf2 {[%clk
0:01:06.1]} 41... Ke6 {[%clk 0:00:39.4]} 42. Re2 {[%clk 0:00:52.1]} 42... f5
{[%clk 0:00:38.9]} 43. Nd3 {[%clk 0:00:52.3]} 43... Kf6 {[%clk 0:00:36.5]} 44.
Rd2 {[%clk 0:00:46.9]} 44... Ke6 {[%clk 0:00:33.9]} 45. Re2 {[%clk 0:00:41.8]}
45... Kf6 {[%clk 0:00:33.7]} 46. Ne1 {[%clk 0:00:36.1]} 46... e4 {[%clk
0:00:26.9]} 47. fxe4 {[%clk 0:00:34.2]} 47... Bxe4 {[%clk 0:00:26.2]} 48. Nd3
{[%clk 0:00:25.8]} 48... Rg8 {[%clk 0:00:23.6]} 49. Ne1 {[%clk 0:00:20.6]} 49...
Rg3+ {[%clk 0:00:23.2]} 50. Kb2 {[%clk 0:00:21.3]} 50... Kg5 {[%clk 0:00:20.8]}
51. Rd2 {[%clk 0:00:21.3]} 51... Kf4 {[%clk 0:00:20.8]} 52. Rxd6 {[%clk
0:00:20.6]} 52... Re3 {[%clk 0:00:21.1]} 53. Rd1 {[%clk 0:00:18.3]} 53... Re2+
{[%clk 0:00:21]} 54. Kc3 {[%clk 0:00:18.6]} 54... Re3+ {[%clk 0:00:20.8]} 55.
Kb2 {[%clk 0:00:17.7]} 55... Kg3 {[%clk 0:00:20.7]} 56. b4 {[%clk 0:00:17.3]}
56... axb4 {[%clk 0:00:19.4]} 57. axb4 {[%clk 0:00:18.2]} 57... cxb4 {[%clk
0:00:19.7]} 58. c5 {[%clk 0:00:18.3]} 58... Rc3 {[%clk 0:00:14]} 59. Rd4 {[%clk
0:00:13.3]} 59... Rxc5 {[%clk 0:00:13.6]} 60. Rxb4 {[%clk 0:00:13.9]} 60... Kf2
{[%clk 0:00:13.9]} 61. Nf3 {[%clk 0:00:13.4]} 61... Bxf3 {[%clk 0:00:11.1]} 62.
gxf3 {[%clk 0:00:14.3]} 62... Kg3 {[%clk 0:00:09.8]} 63. Kb3 {[%clk 0:00:12.5]}
63... Kxh3 {[%clk 0:00:09.8]} 0-1

[Event "*** Titled Tuesday Blitz"]
[Site "Chess.com"]
[Date "2020.11.03"]
[Round "8"]
[White "kflorian98"]
[Black "tsaruk_maks"]
[Result "1/2-1/2"]
[WhiteElo "2751"]
[BlackElo "2584"]
[TimeControl "180+1"]
[EndTime "11:33:36 PST"]
[Termination "Game drawn - insufficient material"]

1. d4 {[%clk 0:03:00.9]} 1... Nf6 {[%clk 0:03:00.2]} 2. Nc3 {[%clk 0:02:59.7]}
2... d5 {[%clk 0:02:57.5]} 3. Bf4 {[%clk 0:02:59.1]} 3... e6 {[%clk 0:02:57.5]}
4. Nb5 {[%clk 0:02:56.3]} 4... Na6 {[%clk 0:02:54.6]} 5. e3 {[%clk 0:02:56.6]}
5... c6 {[%clk 0:02:52.7]} 6. Nc3 {[%clk 0:02:56.8]} 6... Bd6 {[%clk 0:02:53.3]}
7. Nf3 {[%clk 0:02:55.1]} 7... O-O {[%clk 0:02:50.6]} 8. a3 {[%clk 0:02:48.9]}
8... c5 {[%clk 0:02:47.6]} 9. Bxa6 {[%clk 0:02:28.4]} 9... bxa6 {[%clk
0:02:47.5]} 10. Bxd6 {[%clk 0:02:28.6]} 10... Qxd6 {[%clk 0:02:48.4]} 11. dxc5
{[%clk 0:02:29]} 11... Qxc5 {[%clk 0:02:49.1]} 12. Qd4 {[%clk 0:02:29.4]} 12...
Qb6 {[%clk 0:02:19.5]} 13. Na4 {[%clk 0:02:17]} 13... Qc7 {[%clk 0:01:55.5]} 14.
Qc5 {[%clk 0:02:14.6]} 14... Qb8 {[%clk 0:01:50.8]} 15. Qb4 {[%clk 0:02:10.6]}
15... Bd7 {[%clk 0:01:50.3]} 16. Nc5 {[%clk 0:02:08.8]} 16... Rc8 {[%clk
0:01:40.3]} 17. Qxb8 {[%clk 0:02:03.5]} 17... Raxb8 {[%clk 0:01:39.4]} 18. b4
{[%clk 0:02:04.2]} 18... a5 {[%clk 0:01:29.9]} 19. O-O {[%clk 0:01:56.5]} 19...
axb4 {[%clk 0:00:57.8]} 20. axb4 {[%clk 0:01:57.4]} 20... Rxb4 {[%clk 0:00:58]}
21. Nxd7 {[%clk 0:01:57.1]} 21... Nxd7 {[%clk 0:00:58.9]} 22. Rxa7 {[%clk
0:01:57.4]} 22... Nc5 {[%clk 0:00:58.9]} 23. Rfa1 {[%clk 0:01:50.5]} 23... g6
{[%clk 0:00:27.8]} 24. h3 {[%clk 0:01:45.2]} 24... Rb7 {[%clk 0:00:24.7]} 25.
Ne5 {[%clk 0:01:40.8]} 25... Rcc7 {[%clk 0:00:14.5]} 26. Rxb7 {[%clk 0:01:35.3]}
26... Rxb7 {[%clk 0:00:12.7]} 27. g4 {[%clk 0:01:34.5]} 27... Nd7 {[%clk
0:00:07.9]} 28. Nf3 {[%clk 0:01:31.1]} 28... Rc7 {[%clk 0:00:07.8]} 29. Kg2
{[%clk 0:01:27.7]} 29... Kg7 {[%clk 0:00:06.2]} 30. g5 {[%clk 0:01:26]} 30... h6
{[%clk 0:00:06.2]} 31. h4 {[%clk 0:01:25.4]} 31... hxg5 {[%clk 0:00:06.7]} 32.
hxg5 {[%clk 0:01:26.3]} 32... Nc5 {[%clk 0:00:05]} 33. Ra2 {[%clk 0:01:20.1]}
33... Ne4 {[%clk 0:00:05]} 34. Rb2 {[%clk 0:01:18]} 34... Kf8 {[%clk 0:00:04.3]}
35. Ra2 {[%clk 0:01:16.4]} 35... Ke7 {[%clk 0:00:04.7]} 36. Rb2 {[%clk
0:01:15.1]} 36... Kd6 {[%clk 0:00:04.1]} 37. Rb6+ {[%clk 0:01:13.8]} 37... Ke7
{[%clk 0:00:04.8]} 38. Rb2 {[%clk 0:01:13.5]} 38... Kd6 {[%clk 0:00:04.1]} 39.
Ra2 {[%clk 0:01:14.2]} 39... Ke7 {[%clk 0:00:01.9]} 40. Kf1 {[%clk 0:01:10.1]}
40... f6 {[%clk 0:00:02.8]} 41. gxf6+ {[%clk 0:01:08.9]} 41... Kxf6 {[%clk
0:00:03.7]} 42. Nd4 {[%clk 0:01:07]} 42... g5 {[%clk 0:00:04.6]} 43. Ra6 {[%clk
0:01:06.4]} 43... Nc5 {[%clk 0:00:05.2]} 44. Rb6 {[%clk 0:01:06.2]} 44... Ke7
{[%clk 0:00:03]} 45. Kg2 {[%clk 0:01:05.8]} 45... Kf6 {[%clk 0:00:02.6]} 46. f3
{[%clk 0:01:04.6]} 46... Re7 {[%clk 0:00:02.2]} 47. Kg3 {[%clk 0:01:04.6]} 47...
Kf7 {[%clk 0:00:01.9]} 48. Nc6 {[%clk 0:01:04.4]} 48... Rc7 {[%clk 0:00:01.9]}
49. Ne5+ {[%clk 0:01:04.6]} 49... Kf6 {[%clk 0:00:02.5]} 50. Ng4+ {[%clk
0:01:01.7]} 50... Ke7 {[%clk 0:00:03.2]} 51. Nf2 {[%clk 0:00:57.7]} 51... Nd7
{[%clk 0:00:03.2]} 52. Rb2 {[%clk 0:00:56.8]} 52... Ne5 {[%clk 0:00:03.8]} 53.
Nd3 {[%clk 0:00:54.3]} 53... Nc4 {[%clk 0:00:04.2]} 54. Rb3 {[%clk 0:00:49]}
54... Nxe3 {[%clk 0:00:04.4]} 55. Ne5 {[%clk 0:00:49.6]} 55... Nxc2 {[%clk
0:00:02.9]} 56. Rb6 {[%clk 0:00:50]} 56... Nd4 {[%clk 0:00:02.6]} 57. Kg4 {[%clk
0:00:49.4]} 57... Nf5 {[%clk 0:00:02.1]} 58. Kxg5 {[%clk 0:00:48.8]} 58... Nd6
{[%clk 0:00:02.8]} 59. Nc6+ {[%clk 0:00:47.3]} 59... Kd7 {[%clk 0:00:02.7]} 60.
Ne5+ {[%clk 0:00:47.7]} 60... Ke7 {[%clk 0:00:03.3]} 61. Ng6+ {[%clk 0:00:48.3]}
61... Kd7 {[%clk 0:00:02.4]} 62. Kf6 {[%clk 0:00:47.2]} 62... Ne8+ {[%clk
0:00:02.3]} 63. Kf7 {[%clk 0:00:46.8]} 63... Nd6+ {[%clk 0:00:03]} 64. Kf8
{[%clk 0:00:46.2]} 64... Rc8+ {[%clk 0:00:03]} 65. Kg7 {[%clk 0:00:46.3]} 65...
Nc4 {[%clk 0:00:03]} 66. Ra6 {[%clk 0:00:44.5]} 66... e5 {[%clk 0:00:02.6]} 67.
Kf6 {[%clk 0:00:43.2]} 67... e4 {[%clk 0:00:03.1]} 68. fxe4 {[%clk 0:00:43.1]}
68... dxe4 {[%clk 0:00:04]} 69. Nf4 {[%clk 0:00:36.8]} 69... e3 {[%clk
0:00:04.3]} 70. Kf5 {[%clk 0:00:36.1]} 70... Rf8+ {[%clk 0:00:04.5]} 71. Kg4
{[%clk 0:00:36.3]} 71... Ne5+ {[%clk 0:00:03.4]} 72. Kg3 {[%clk 0:00:35.7]}
72... Rxf4 {[%clk 0:00:03.6]} 73. Kxf4 {[%clk 0:00:34.1]} 73... e2 {[%clk
0:00:04.5]} 74. Ra1 {[%clk 0:00:34.1]} 74... e1=Q {[%clk 0:00:04.9]} 75. Rxe1
{[%clk 0:00:33.5]} 75... Nd3+ {[%clk 0:00:05.8]} 76. Ke4 {[%clk 0:00:34.2]}
76... Nxe1 {[%clk 0:00:06.7]} 1/2-1/2

[Event "*** Titled Tuesday Blitz"]
[Site "Chess.com"]
[Date "2020.11.03"]
[Round "8"]
[White "JiiHart"]
[Black "Akhayan"]
[Result "1/2-1/2"]
[WhiteElo "2086"]
[BlackElo "2254"]
[TimeControl "180+1"]
[EndTime "11:33:36 PST"]
[Termination "Game drawn - insufficient material"]

1. e4 {[%clk 0:03:00.9]} 1... e6 {[%clk 0:02:59.3]} 2. d4 {[%clk 0:03:00.3]}
2... d5 {[%clk 0:02:59.7]} 3. Nc3 {[%clk 0:03:00.9]} 3... Nf6 {[%clk 0:02:57.7]}
4. Bg5 {[%clk 0:03:00.1]} 4... Be7 {[%clk 0:02:57]} 5. e5 {[%clk 0:02:59.3]}
5... Nfd7 {[%clk 0:02:56.3]} 6. h4 {[%clk 0:02:59.7]} 6... c5 {[%clk 0:02:55.5]}
7. Nb5 {[%clk 0:02:55.1]} 7... O-O {[%clk 0:02:47.8]} 8. Nd6 {[%clk 0:02:51.4]}
8... cxd4 {[%clk 0:02:39.5]} 9. Nxc8 {[%clk 0:02:48.9]} 9... Bxg5 {[%clk
0:02:35.4]} 10. hxg5 {[%clk 0:02:48.8]} 10... Qxg5 {[%clk 0:02:23.5]} 11. Qh5
{[%clk 0:02:27.8]} 11... Qxh5 {[%clk 0:02:22.6]} 12. Ne7+ {[%clk 0:02:25.1]}
12... Kh8 {[%clk 0:02:22.2]} 13. Rxh5 {[%clk 0:02:25.4]} 13... Nxe5 {[%clk
0:02:20.2]} 14. Rxe5 {[%clk 0:02:24.8]} 14... Nd7 {[%clk 0:02:18]} 15. Re2
{[%clk 0:02:09.8]} 15... Rae8 {[%clk 0:02:16.7]} 16. Nxd5 {[%clk 0:02:09.3]}
16... exd5 {[%clk 0:02:16.4]} 17. Rxe8 {[%clk 0:02:09.3]} 17... Rxe8+ {[%clk
0:02:15.4]} 18. Be2 {[%clk 0:02:08.4]} 18... Nc5 {[%clk 0:02:05.3]} 19. O-O-O
{[%clk 0:02:06.8]} 19... Ne6 {[%clk 0:02:00.2]} 20. Bg4 {[%clk 0:02:00.5]} 20...
g6 {[%clk 0:01:51.2]} 21. Bxe6 {[%clk 0:01:59.6]} 21... fxe6 {[%clk 0:01:51.6]}
22. Rxd4 {[%clk 0:01:58.3]} 22... Kg7 {[%clk 0:01:51.6]} 23. Nf3 {[%clk
0:01:56.7]} 23... Kf6 {[%clk 0:01:51.5]} 24. Rf4+ {[%clk 0:01:56]} 24... Ke7
{[%clk 0:01:49.7]} 25. Ng5 {[%clk 0:01:41.3]} 25... h6 {[%clk 0:01:46.6]} 26.
Rf7+ {[%clk 0:01:36.2]} 26... Kd6 {[%clk 0:01:44.2]} 27. Nf3 {[%clk 0:01:34.3]}
27... Rb8 {[%clk 0:01:41.7]} 28. Rf6 {[%clk 0:01:32.4]} 28... Rg8 {[%clk
0:01:38.5]} 29. Kd2 {[%clk 0:01:25.4]} 29... b5 {[%clk 0:01:26.8]} 30. Rf7
{[%clk 0:01:23.4]} 30... a5 {[%clk 0:01:25.5]} 31. Ra7 {[%clk 0:01:19.5]} 31...
a4 {[%clk 0:01:24.4]} 32. Ra6+ {[%clk 0:01:19]} 32... Ke7 {[%clk 0:01:23]} 33.
Kd3 {[%clk 0:01:17.7]} 33... Rf8 {[%clk 0:01:15.7]} 34. Rb6 {[%clk 0:01:09.5]}
34... g5 {[%clk 0:01:11.9]} 35. Nd4 {[%clk 0:01:01.9]} 35... Rf6 {[%clk
0:01:02.6]} 36. Rb7+ {[%clk 0:00:50.1]} 36... Kd6 {[%clk 0:01:00.8]} 37. Rxb5
{[%clk 0:00:35.3]} 37... Rxf2 {[%clk 0:00:43.5]} 38. Rb6+ {[%clk 0:00:32.8]}
38... Kc5 {[%clk 0:00:40.2]} 39. Rc6+ {[%clk 0:00:29.3]} 39... Kb4 {[%clk
0:00:39.9]} 40. a3+ {[%clk 0:00:28.1]} 40... Ka5 {[%clk 0:00:39.6]} 41. b4+
{[%clk 0:00:20.9]} 41... axb3 {[%clk 0:00:38.8]} 42. cxb3 {[%clk 0:00:21.2]}
42... Rxg2 {[%clk 0:00:36.4]} 43. Nxe6 {[%clk 0:00:18.2]} 43... Rg3+ {[%clk
0:00:34.9]} 44. Kd4 {[%clk 0:00:18.6]} 44... Rxb3 {[%clk 0:00:33.7]} 45. Kxd5
{[%clk 0:00:13.5]} 45... Rxa3 {[%clk 0:00:32.8]} 46. Nd4 {[%clk 0:00:12.6]}
46... Rg3 {[%clk 0:00:26.7]} 47. Rxh6 {[%clk 0:00:12]} 47... Kb4 {[%clk
0:00:24.3]} 48. Rg6 {[%clk 0:00:11.6]} 48... Rg1 {[%clk 0:00:21.8]} 49. Ke5
{[%clk 0:00:11.2]} 49... Kc4 {[%clk 0:00:20.8]} 50. Nf3 {[%clk 0:00:10.9]} 50...
Rg3 {[%clk 0:00:18.6]} 51. Nxg5 {[%clk 0:00:10.4]} 51... Ra3 {[%clk 0:00:16.2]}
52. Ne6 {[%clk 0:00:08.8]} 52... Ra5+ {[%clk 0:00:15.6]} 53. Ke4 {[%clk
0:00:08.4]} 53... Ra4 {[%clk 0:00:13.8]} 54. Rg4 {[%clk 0:00:07.8]} 54... Ra1
{[%clk 0:00:12.6]} 55. Kf5+ {[%clk 0:00:07.6]} 55... Kd3 {[%clk 0:00:12.7]} 56.
Nf4+ {[%clk 0:00:07.6]} 56... Ke3 {[%clk 0:00:12]} 57. Rg3+ {[%clk 0:00:06.5]}
57... Kf2 {[%clk 0:00:11.7]} 58. Rb3 {[%clk 0:00:06.5]} 58... Ra5+ {[%clk
0:00:11]} 59. Kg4 {[%clk 0:00:06.5]} 59... Ra8 {[%clk 0:00:09.6]} 60. Rf3+
{[%clk 0:00:06.8]} 60... Ke1 {[%clk 0:00:09.2]} 61. Nd3+ {[%clk 0:00:06.7]}
61... Kd2 {[%clk 0:00:09.1]} 62. Kg3 {[%clk 0:00:06.7]} 62... Rg8+ {[%clk
0:00:09.4]} 63. Kf2 {[%clk 0:00:06.8]} 63... Rd8 {[%clk 0:00:09.9]} 64. Rg3
{[%clk 0:00:06.7]} 64... Rxd3 {[%clk 0:00:09.2]} 65. Rxd3+ {[%clk 0:00:06.8]}
65... Kxd3 {[%clk 0:00:09.5]} 1/2-1/2